bitfinex/quotes_BTCUSD_20251004
["timestamp","ask_amount","ask_price","bid_price","bid_amount"]
[1759563291611,0.27532088,122400.0,122390.0,0.31706]
[1759563291824,0.25901688,122400.0,122390.0,0.31706]
[1759563292965,0.25901688,122400.0,122390.0,4.939179]
[1759563293148,0.25901688,122400.0,122390.0,4.942159]
[1759563294505,0.25901688,122400.0,122390.0,0.31706]
[1759563294728,0.26196688,122400.0,122390.0,0.31496]
[1759563295749,0.26196688,122400.0,122390.0,0.37373911]
[1759563300640,0.26196688,122400.0,122390.0,0.05877911]
[1759563300848,0.26196688,122400.0,122390.0,5.49577811]
[1759563301043,0.26196688,122400.0,122390.0,0.37365911]
[1759563301443,0.26196688,122400.0,122390.0,0.05877911]
[1759563301642,0.26196688,122400.0,122390.0,5.49577811]
[1759563301897,0.26196688,122400.0,122390.0,0.37365911]
[1759563303675,0.26196688,122400.0,122390.0,0.05877911]
[1759563303881,0.26196688,122400.0,122390.0,5.41085811]
[1759563304094,0.28648957,122400.0,122390.0,0.28873911]
[1759563304324,0.28648957,122400.0,122390.0,0.22996]
[1759563304728,0.16341204,122390.0,122380.0,0.05877911]
[1759563304987,0.2494641,122390.0,122380.0,0.81833911]
[1759563305204,0.2516041,122390.0,122380.0,0.75956]
[1759563305412,0.2761288,122390.0,122380.0,0.75956]
[1759563305612,0.2761288,122390.0,122380.0,0.52956]
[1759563305812,0.2761288,122390.0,122380.0,0.75956]
[1759563306026,0.2811288,122390.0,122380.0,0.75956]
[1759563306542,0.7090467,122390.0,122380.0,0.75956]
[1759563306762,0.2811288,122390.0,122380.0,0.75956]
[1759563306980,0.2841288,122390.0,122380.0,0.75956]
[1759563309505,0.66467503,122390.0,122380.0,0.7596]
[1759563309718,0.2841288,122390.0,122380.0,0.7596]
[1759563310187,0.28433233,122390.0,122380.0,0.7596]
[1759563311935,0.28433233,122390.0,122380.0,0.52956]
[1759563312142,0.28433233,122390.0,122380.0,0.7596]
[1759563314284,0.36801769,122390.0,122380.0,0.7596]
[1759563318252,0.36801769,122390.0,122380.0,0.58912722]
[1759563318873,0.28433233,122390.0,122380.0,0.58912722]
[1759563327095,0.28433233,122390.0,122380.0,0.32052722]
[1759563333104,0.34153817,122380.0,122370.0,0.00054679]
[1759563333270,0.42466023,122380.0,122370.0,0.00054679]
[1759563333478,0.42996023,122380.0,122370.0,0.00054679]
[1759563334006,0.46291827,122380.0,122370.0,0.00054679]
[1759563334199,0.46491827,122380.0,122370.0,0.23058679]
[1759563334537,0.52552259,122380.0,122370.0,0.23058679]
[1759563335756,0.52552259,122380.0,122370.0,0.23158679]
[1759563338223,0.52552259,122380.0,122370.0,0.23366679]
[1759563338412,0.52552259,122380.0,122370.0,0.23158679]
[1759563344191,0.52237259,122380.0,122370.0,0.23366679]
[1759563344407,0.52552259,122380.0,122370.0,0.23158679]
[1759563344643,0.42220895,122380.0,122370.0,0.00154679]
[1759563344853,0.65984973,122380.0,122370.0,0.00154679]
[1759563345651,0.65984973,122380.0,122370.0,0.00054679]
[1759563345899,0.66884973,122380.0,122370.0,0.00154679]
[1759563346084,0.59405059,122380.0,122370.0,0.00154679]
[1759563346282,0.59205059,122380.0,122370.0,0.00154679]
[1759563346590,0.60013059,122380.0,122370.0,0.00154679]
[1759563348308,0.59248981,122380.0,122370.0,0.00154679]
[1759563353036,0.36240981,122380.0,122370.0,0.00154679]
[1759563353222,0.59248981,122380.0,122370.0,0.00154679]
[1759563357906,0.59244981,122380.0,122370.0,0.00154679]
[1759563362434,0.34867921,122380.0,122370.0,0.00656679]
[1759563363051,0.35065921,122380.0,122370.0,0.00154679]
[1759563363308,0.35389921,122380.0,122370.0,0.00154679]
[1759563369204,0.36153358,122380.0,122370.0,0.00154679]
[1759563370336,1.12981309,122380.0,122370.0,0.00154679]
[1759563370541,1.14508216,122380.0,122370.0,0.00154679]
[1759563371412,1.17523406,122380.0,122370.0,0.00154679]
[1759563372649,1.20023406,122380.0,122370.0,0.00154679]
[1759563373064,1.28444813,122380.0,122370.0,0.00154679]
[1759563375315,0.16347552,122350.0,122330.0,0.08492]
[1759563375523,0.08510206,122340.0,122330.0,0.08492]
[1759563375733,0.08834206,122340.0,122330.0,0.08492]
[1759563376622,0.08834206,122340.0,122330.0,0.31553107]
[1759563377065,0.08834206,122340.0,122330.0,0.08541107]
[1759563377275,0.08834206,122340.0,122330.0,0.31553107]
[1759563377673,0.08834206,122340.0,122330.0,0.31753107]
[1759563377972,0.08834206,122340.0,122330.0,0.31853107]
[1759563378380,0.08834206,122340.0,122330.0,0.31753107]
[1759563378589,0.08834206,122340.0,122330.0,0.32053107]
[1759563379025,0.08510206,122340.0,122330.0,0.32261107]
[1759563379337,0.14884974,122340.0,122330.0,0.32053107]
[1759563379976,0.14560974,122340.0,122330.0,0.32261107]
[1759563380160,0.14884974,122340.0,122330.0,0.32053107]
[1759563381115,0.14884974,122340.0,122330.0,0.32134565]
[1759563382781,0.14884974,122340.0,122330.0,0.32342565]
[1759563383062,0.14362974,122340.0,122330.0,0.32636565]
[1759563383719,0.14362974,122340.0,122330.0,0.32342565]
[1759563383967,0.14560974,122340.0,122330.0,0.32342565]
[1759563384903,0.14362974,122340.0,122330.0,0.32342565]
[1759563385053,0.14362974,122340.0,122330.0,0.32636565]
[1759563385256,0.14362974,122340.0,122330.0,0.32342565]
[1759563385457,0.14560974,122340.0,122330.0,0.32342565]
[1759563386176,0.14362974,122340.0,122330.0,0.32342565]
[1759563386373,0.14884974,122340.0,122330.0,0.32342565]
[1759563386781,0.14362974,122340.0,122330.0,0.32342565]
[1759563387229,0.14560974,122340.0,122330.0,0.32342565]
[1759563387402,0.31232856,122340.0,122330.0,0.32134565]
[1759563387830,0.14884974,122340.0,122330.0,0.32134565]
[1759563387985,0.14362974,122340.0,122330.0,0.32636565]
[1759563388614,0.14362974,122340.0,122330.0,0.32342565]
[1759563388832,0.14560974,122340.0,122330.0,0.32342565]
[1759563389496,0.30908856,122340.0,122330.0,0.32342565]
[1759563392040,0.14362974,122340.0,122330.0,0.32639565]
[1759563392264,0.30710856,122340.0,122330.0,0.32639565]
[1759563393444,0.30710856,122340.0,122330.0,0.32342565]
[1759563395105,0.30710856,122340.0,122330.0,0.32639565]
[1759563396481,0.30710856,122340.0,122330.0,0.32342565]
[1759563396620,0.30916856,122340.0,122330.0,0.32342565]
[1759563400061,0.30710856,122340.0,122330.0,0.32342565]
[1759563407283,0.31226856,122340.0,122330.0,0.32346565]
[1759563407493,0.31226856,122340.0,122330.0,0.32138565]
[1759563408495,0.31226856,122340.0,122330.0,0.00630565]
[1759563408641,0.31226856,122340.0,122330.0,0.32138565]
[1759563409248,0.31226856,122340.0,122330.0,0.00130565]
[1759563409462,0.31226856,122340.0,122330.0,0.31634565]
[1759563409698,0.31426856,122340.0,122330.0,0.31634565]
[1759563412194,0.31426856,122340.0,122330.0,0.00130565]
[1759563412463,0.31426856,122340.0,122330.0,0.31634565]
[1759563432866,0.33880134,122340.0,122330.0,0.31634565]
[1759563444844,0.33880134,122340.0,122330.0,0.00130565]
[1759563445075,0.33880134,122340.0,122330.0,0.31634565]
[1759563446107,0.34730533,122340.0,122330.0,0.31634565]
[1759563447945,0.33880134,122340.0,122330.0,0.31634565]
[1759563450371,0.33880134,122340.0,122330.0,0.00130565]
[1759563450549,0.33880134,122340.0,122330.0,0.31634565]
[1759563450937,0.34714298,122340.0,122330.0,0.31634565]
[1759563451469,0.33880134,122340.0,122330.0,0.31634565]
[1759563464918,0.33880134,122340.0,122330.0,0.23138565]
[1759563465147,0.33880134,122340.0,122330.0,0.31634565]
[1759563466761,0.33880134,122340.0,122330.0,0.00130565]
[1759563466969,0.33880134,122340.0,122330.0,0.31634565]
[1759563469315,0.33880134,122340.0,122330.0,0.37514945]
[1759563497725,0.33880134,122340.0,122330.0,0.37720945]
[1759563497945,0.33364134,122340.0,122330.0,0.38016945]
[1759563498597,0.33364134,122340.0,122330.0,0.32136565]
[1759563499001,0.17016252,122340.0,122330.0,0.32136565]
[1759563499614,0.33364134,122340.0,122330.0,0.32136565]
[1759563499814,0.17016252,122340.0,122330.0,0.32136565]
[1759563502847,0.33364624,122340.0,122320.0,0.08331688]
[1759563503059,0.17065387,122340.0,122330.0,0.08496]
[1759563503700,0.16965387,122340.0,122330.0,0.08496]
[1759563503868,0.16965387,122340.0,122330.0,0.315]
[1759563504688,0.338124,122340.0,122330.0,0.23004]
[1759563504888,0.338124,122340.0,122330.0,0.315]
[1759563505094,0.27761632,122340.0,122330.0,0.315]
[1759563505492,0.27861632,122340.0,122330.0,0.315]
[1759563506565,0.33930789,122340.0,122330.0,0.315]
[1759563508796,0.17582776,122340.0,122330.0,0.315]
[1759563509601,0.33930658,122340.0,122330.0,0.315]
[1759563509811,0.33930658,122340.0,122330.0,0.23004]
[1759563510174,0.33930658,122340.0,122330.0,0.315]
[1759563510655,0.17083776,122340.0,122330.0,0.315]
[1759563511631,0.33431658,122340.0,122330.0,0.315]
[1759563511859,0.33642658,122340.0,122330.0,0.315]
[1759563512076,0.33948658,122340.0,122330.0,0.315]
[1759563517499,0.27879501,122340.0,122330.0,0.315]
[1759563526508,0.34117842,122340.0,122330.0,0.315]
[1759563528480,0.34117842,122340.0,122320.0,0.09799472]
[1759563528701,0.34117842,122340.0,122330.0,0.315]
[1759563530044,0.34117842,122340.0,122330.0,0.37380111]
[1759563530245,0.34017842,122340.0,122330.0,0.37380111]
[1759563531657,0.34117842,122340.0,122330.0,0.37380111]
[1759563549256,0.34117842,122340.0,122330.0,0.14376111]
[1759563549464,0.34117842,122340.0,122330.0,0.05880111]
[1759563549671,0.34117842,122340.0,122330.0,0.37380111]
[1759563550090,0.34117842,122340.0,122330.0,0.05880111]
[1759563550313,0.34117842,122340.0,122330.0,0.37380111]
[1759563550736,0.34117842,122340.0,122330.0,0.05880111]
[1759563550953,0.34117842,122340.0,122330.0,0.37380111]
[1759563554155,0.34117842,122340.0,122330.0,0.05880111]
[1759563554346,0.34117842,122340.0,122330.0,0.37380111]
[1759563556025,0.16349384,122330.0,122310.0,0.19079286]
[1759563556225,0.2495759,122330.0,122320.0,0.08496]
[1759563556355,0.2517259,122330.0,122320.0,0.08496]
[1759563556775,0.27625974,122330.0,122320.0,0.08496]
[1759563557182,0.27625974,122330.0,122320.0,0.315]
[1759563557384,0.27625974,122330.0,122320.0,0.318]
[1759563558773,0.27625974,122330.0,122320.0,0.32]
[1759563561643,0.27625974,122330.0,122320.0,0.32020369]
[1759563565998,0.27625974,122330.0,122320.0,0.56545369]
[1759563578975,0.27625974,122330.0,122320.0,0.56345369]
[1759563579549,0.27725974,122330.0,122320.0,0.56045369]
[1759563579714,0.27825974,122330.0,122320.0,0.56045369]
[1759563584181,0.27825974,122330.0,122320.0,0.33041369]
[1759563584405,0.27825974,122330.0,122320.0,0.56045369]
[1759563585247,0.28680424,122330.0,122320.0,0.56045369]
[1759563600856,0.27825974,122330.0,122320.0,0.56045369]
[1759563604113,0.27314974,122330.0,122320.0,0.56045369]
[1759563605809,0.27523974,122330.0,122320.0,0.56045369]
[1759563606016,0.27826974,122330.0,122320.0,0.56045369]
[1759563608745,0.27826974,122330.0,122320.0,0.56049369]
[1759563611279,0.27314974,122330.0,122320.0,0.56049369]
[1759563611669,0.27826974,122330.0,122320.0,0.56049369]
[1759563615136,0.27826974,122330.0,122320.0,0.24545369]
[1759563615342,0.27826974,122330.0,122320.0,0.56049369]
[1759563616373,0.27826974,122330.0,122320.0,0.47553369]
[1759563616715,0.27826974,122330.0,122320.0,0.56049369]
[1759563620233,0.27826974,122330.0,122320.0,0.35723447]
[1759563632151,0.27826974,122330.0,122320.0,0.04219447]
[1759563632397,0.27523974,122330.0,122320.0,0.27223447]
[1759563632798,0.27820974,122330.0,122320.0,0.27223447]
[1759563633489,0.27820974,122330.0,122320.0,0.04219447]
[1759563633640,0.27820974,122330.0,122320.0,0.27223447]
[1759563634244,0.27820974,122330.0,122320.0,0.04219447]
[1759563634469,0.27820974,122330.0,122320.0,0.17371447]
[1759563636484,0.27820974,122330.0,122320.0,0.04219447]
[1759563636624,0.27820974,122330.0,122320.0,0.27223447]
[1759563636828,0.27820974,122330.0,122320.0,0.04219447]
[1759563637044,0.66872077,122330.0,122320.0,0.17367447]
[1759563637669,0.61820974,122330.0,122320.0,0.17367447]
[1759563638186,1.04659391,122330.0,122320.0,0.04219447]
[1759563638437,0.61820974,122330.0,122320.0,0.27223447]
[1759563639620,0.61820974,122330.0,122320.0,0.04219447]
[1759563650908,0.79632252,122330.0,122320.0,0.04219447]
[1759563651533,0.87193312,122330.0,122320.0,0.04219447]
[1759563654744,1.30031729,122330.0,122320.0,0.04219447]
[1759563655390,0.87193312,122330.0,122320.0,0.04219447]
[1759563656446,1.30031729,122330.0,122320.0,0.04219447]
[1759563658532,1.12220451,122330.0,122320.0,0.04219447]
[1759563658727,1.15998887,122330.0,122320.0,0.04219447]
[1759563659643,1.15898887,122330.0,122320.0,0.04219447]
[1759563659840,1.16698887,122330.0,122320.0,0.04219447]
[1759563660225,1.19198887,122330.0,122320.0,0.04219447]
[1759563660414,1.18335641,122330.0,122320.0,0.04219447]
[1759563660617,1.19235641,122330.0,122320.0,0.04319447]
[1759563660825,1.42243641,122330.0,122320.0,0.04319447]
[1759563661021,1.19235641,122330.0,122320.0,0.04319447]
[1759563661236,1.44533785,122330.0,122320.0,0.04319447]
[1759563661463,1.43770404,122330.0,122320.0,0.04319447]
[1759563661619,1.42243641,122330.0,122320.0,0.04319447]
[1759563661816,1.43770385,122330.0,122320.0,0.04319447]
[1759563662239,1.19235641,122330.0,122320.0,0.04319447]
[1759563662576,1.43770611,122330.0,122320.0,0.04319447]
[1759563662820,1.44534071,122330.0,122320.0,0.04319447]
[1759563665833,0.50351892,122310.0,122300.0,0.05]
[1759563665967,0.58664098,122310.0,122300.0,0.05]
[1759563666179,0.59182098,122310.0,122300.0,0.05]
[1759563666592,0.61636432,122310.0,122300.0,0.05]
[1759563667008,0.61936432,122310.0,122300.0,0.05]
[1759563667217,0.62236432,122310.0,122300.0,0.051]
[1759563671588,0.62236432,122310.0,122300.0,0.05140747]
[1759563694189,0.63000559,122310.0,122300.0,0.05140747]
[1759563701598,0.62236432,122310.0,122300.0,0.05140747]
[1759563702154,0.27718432,122310.0,122300.0,0.05140747]
[1759563702373,0.25264098,122310.0,122300.0,0.06776069]
[1759563702989,0.08912206,122310.0,122300.0,0.06776069]
[1759563703216,0.006,122310.0,122300.0,0.23129298]
[1759563703435,0.006,122310.0,122300.0,0.31295564]
[1759563704104,0.006,122310.0,122300.0,0.23947555]
[1759563704310,0.006,122310.0,122300.0,0.07594326]
[1759563704524,0.006,122310.0,122300.0,0.48089657]
[1759563704746,0.006,122310.0,122300.0,0.46454335]
[1759563704985,0.25264098,122310.0,122300.0,0.42526056]
[1759563705194,0.08912206,122310.0,122300.0,0.42526056]
[1759563705616,0.08912206,122310.0,122300.0,0.34026056]
[1759563705839,0.08912206,122310.0,122300.0,0.42526056]
[1759563708422,0.08912206,122310.0,122300.0,0.11014056]
[1759563708665,0.08912206,122310.0,122300.0,0.42526056]
[1759563710840,0.08912206,122310.0,122300.0,0.34022056]
[1759563711047,0.08912206,122310.0,122300.0,0.42522056]
[1759563712271,0.25264098,122310.0,122300.0,0.42522056]
[1759563713511,0.25264098,122310.0,122300.0,0.11014056]
[1759563713713,0.25264098,122310.0,122300.0,0.42518056]
[1759563718735,0.08912206,122310.0,122300.0,0.42518056]
[1759563720118,0.25264098,122310.0,122300.0,0.36644747]
[1759563720954,0.25264098,122310.0,122300.0,0.05140747]
[1759563721168,0.25773098,122310.0,122300.0,0.36644747]
[1759563724207,0.25773098,122310.0,122300.0,0.05140747]
[1759563724382,0.25773098,122310.0,122300.0,0.36648747]
[1759563733462,0.25773098,122310.0,122300.0,0.05140747]
[1759563733664,0.25773098,122310.0,122300.0,0.28148747]
[1759563734230,0.25773098,122310.0,122300.0,0.05140747]
[1759563734440,0.25773098,122310.0,122300.0,0.28148747]
[1759563756014,0.6864199,122310.0,122300.0,0.28152747]
[1759563759471,1.14842165,122310.0,122300.0,0.28152747]
[1759563760911,0.60536676,122310.0,122300.0,0.28152747]
[1759563761228,1.03405568,122310.0,122300.0,0.28152747]
[1759563761396,0.60536676,122310.0,122300.0,0.28152747]
[1759563762237,0.59773098,122310.0,122300.0,0.28152747]
[1759563762432,0.16353229,122300.0,122290.0,0.17571087]
[1759563762656,0.24963435,122300.0,122290.0,0.18728748]
[1759563762883,0.25161435,122300.0,122290.0,0.18749127]
[1759563763638,0.25161435,122300.0,122290.0,0.41770036]
[1759563764175,0.25261435,122300.0,122290.0,0.41770036]
[1759563765151,0.25361435,122300.0,122290.0,0.41770036]
[1759563767206,0.31351636,122300.0,122290.0,0.41770036]
[1759563768984,0.31351636,122300.0,122290.0,0.39454714]
[1759563793184,0.31351636,122300.0,122290.0,0.39450714]
[1759563807487,0.16553229,122300.0,122290.0,0.41386094]
[1759563807690,0.16553229,122300.0,122290.0,0.47265858]
[1759563807691,0.002,122300.0,122290.0,0.47265858]
[1759563807843,0.16553229,122300.0,122290.0,0.49719752]
[1759563808405,0.16553229,122300.0,122290.0,0.5172166]
[1759563810735,0.24865435,122300.0,122290.0,0.56292372]
[1759563811707,0.24865435,122300.0,122290.0,0.33973894]
[1759563813517,0.24865435,122300.0,122290.0,0.3560987]
[1759563814980,0.002,122300.0,122290.0,0.51964437]
[1759563818951,0.002,122300.0,122290.0,0.76495437]
[1759563820349,0.002,122300.0,122290.0,0.44975437]
[1759563820545,0.002,122300.0,122290.0,0.9414087]
[1759563820778,0.002,122300.0,122290.0,1.10495437]
[1759563821783,0.002,122300.0,122290.0,1.17843446]
[1759563827168,0.002,122300.0,122290.0,0.83839446]
[1759563829029,0.002,122300.0,122290.0,0.52323446]
[1759563829236,0.002,122300.0,122290.0,0.83839446]
[1759563830528,0.002,122300.0,122290.0,0.58988879]
[1759563830684,0.00411,122300.0,122290.0,0.83839446]
[1759563831081,0.002,122300.0,122290.0,0.83839446]
[1759563839815,0.00707,122300.0,122290.0,0.35968879]
[1759563840002,0.00707,122300.0,122290.0,0.58496894]
[1759563840419,0.00707,122300.0,122290.0,0.26984894]
[1759563840683,0.002,122300.0,122290.0,0.58500894]
[1759563841126,0.00707,122300.0,122290.0,0.58500894]
[1759563841331,0.00402,122300.0,122290.0,0.58500894]
[1759563841530,0.002,122300.0,122290.0,0.58500894]
[1759563841752,0.002,122300.0,122290.0,0.60218026]
[1759563842863,0.002,122300.0,122290.0,0.76572593]
[1759563843070,0.002,122300.0,122290.0,0.60218026]
[1759563843272,0.002,122300.0,122290.0,0.66094255]
[1759563843486,0.002,122300.0,122290.0,0.60218026]
[1759563846413,0.00402,122300.0,122290.0,0.60218026]
[1759563846584,0.002,122300.0,122290.0,0.60218026]
[1759563848486,0.002,122300.0,122290.0,0.66094395]
[1759563850435,0.002,122300.0,122290.0,0.60218026]
[1759563851361,0.002,122300.0,122290.0,0.6609367]
[1759563851557,0.00402,122300.0,122290.0,0.6609367]
[1759563851777,0.00707,122300.0,122290.0,0.6609367]
[1759563851971,0.002,122300.0,122290.0,0.6609367]
[1759563853778,0.002,122300.0,122290.0,0.63639776]
[1759563854293,0.00707,122300.0,122290.0,0.63639776]
[1759563854789,0.002,122300.0,122290.0,0.63639776]
[1759563855043,0.00402,122300.0,122290.0,0.63639776]
[1759563855200,0.00707,122300.0,122290.0,0.63639776]
[1759563855398,0.00402,122300.0,122290.0,0.63639776]
[1759563855603,0.002,122300.0,122290.0,0.63639776]
[1759563856498,0.002,122300.0,122290.0,0.32123776]
[1759563856680,0.002,122300.0,122290.0,0.63635776]
[1759563857228,0.002,122300.0,122290.0,0.79990343]
[1759563857440,0.002,122300.0,122290.0,0.74114699]
[1759563860151,0.002,122300.0,122290.0,0.81462708]
[1759563860391,0.002,122300.0,122290.0,0.83916435]
[1759563863918,0.002,122300.0,122290.0,0.52404435]
[1759563864148,0.002,122300.0,122290.0,0.83916435]
[1759563867064,0.002,122300.0,122290.0,0.52404435]
[1759563867268,0.002,122300.0,122290.0,0.83916435]
[1759563870559,0.002,122300.0,122290.0,0.52404435]
[1759563870864,0.002,122300.0,122290.0,1.17912435]
[1759563872261,0.002,122300.0,122290.0,0.83916435]
[1759563873468,0.002,122300.0,122290.0,0.52404435]
[1759563873666,0.002,122300.0,122290.0,1.17912435]
[1759563880413,0.002,122300.0,122290.0,0.52404435]
[1759563880588,0.002,122300.0,122290.0,1.17912435]
[1759563887230,0.002,122300.0,122290.0,1.04923698]
[1759563887436,0.002,122300.0,122290.0,0.97575689]
[1759563896371,0.002,122300.0,122290.0,0.91696565]
[1759563897216,0.00028856,122300.0,122290.0,0.99044574]
[1759563897363,0.00028856,122300.0,122290.0,0.99040574]
[1759563898290,0.00028856,122300.0,122290.0,0.33536574]
[1759563898531,0.00028856,122300.0,122290.0,0.99040574]
[1759563900631,0.00028856,122300.0,122290.0,0.33536574]
[1759563900852,0.00028856,122300.0,122290.0,0.99040574]
[1759563907272,3.913e-05,122300.0,122290.0,0.91692565]
[1759563912721,3.913e-05,122300.0,122290.0,0.49196565]
[1759563912876,0.00217913,122300.0,122290.0,0.91688565]
[1759563913108,3.913e-05,122300.0,122290.0,0.91688565]
[1759563913294,3.913e-05,122300.0,122290.0,0.26188565]
[1759563913512,3.913e-05,122300.0,122290.0,0.91688565]
[1759563915219,3.913e-05,122300.0,122290.0,0.26188565]
[1759563915422,3.913e-05,122300.0,122290.0,0.91688565]
[1759563917224,0.00054716,122310.0,122290.0,0.91688565]
[1759563917427,0.00054716,122310.0,122300.0,0.08553616]
[1759563917644,0.00054716,122310.0,122300.0,0.51951616]
[1759563917818,0.00054716,122310.0,122300.0,0.83455616]
[1759563918021,0.00054716,122310.0,122300.0,0.85909185]
[1759563918431,0.00578716,122310.0,122300.0,0.85909185]
[1759563918875,0.01178716,122310.0,122300.0,0.86009185]
[1759563919020,0.00854716,122310.0,122300.0,0.86009185]
[1759563919434,0.00654716,122310.0,122300.0,0.86009185]
[1759563919993,0.01154716,122310.0,122300.0,0.77513185]
[1759563920157,0.01678716,122310.0,122300.0,0.54505185]
[1759563920355,0.01678716,122310.0,122300.0,0.77513185]
[1759563920541,0.01678716,122310.0,122300.0,0.86009185]
[1759563920761,0.01368716,122310.0,122300.0,0.86009185]
[1759563920962,0.01154716,122310.0,122300.0,0.86009185]
[1759563921389,0.01678716,122310.0,122300.0,0.86009185]
[1759563921987,0.01154716,122310.0,122300.0,0.86009185]
[1759563922421,0.01368716,122310.0,122300.0,0.86009185]
[1759563922624,0.01154716,122310.0,122300.0,0.86009185]
[1759563925591,0.01154716,122310.0,122300.0,0.77513185]
[1759563925776,0.01154716,122310.0,122300.0,0.54505185]
[1759563925956,0.01678716,122310.0,122300.0,0.86009185]
[1759563926545,0.01368716,122310.0,122300.0,0.86009185]
[1759563926751,0.01154716,122310.0,122300.0,0.86009185]
[1759563930384,0.01154716,122310.0,122300.0,0.71184585]
[1759563930819,0.01154716,122310.0,122300.0,0.65301517]
[1759563931443,0.01365716,122310.0,122300.0,0.65301517]
[1759563931775,0.01154716,122310.0,122300.0,0.65301517]
[1759563931936,0.01154716,122310.0,122300.0,0.81654746]
[1759563936483,0.01154716,122310.0,122300.0,0.65301517]
[1759563937045,0.01154716,122310.0,122300.0,0.81654746]
[1759563940609,0.01154716,122310.0,122300.0,0.89008722]
[1759563942308,0.01154716,122310.0,122300.0,0.72655493]
[1759563944944,0.01154716,122310.0,122300.0,0.75111997]
[1759563945156,0.01154716,122310.0,122300.0,0.67758021]
[1759563950252,0.01154716,122310.0,122300.0,0.8411125]
[1759563951254,0.01154716,122310.0,122300.0,0.67758021]
[1759563955025,0.01154716,122310.0,122300.0,0.69228793]
[1759563956884,0.01154716,122310.0,122300.0,0.85582022]
[1759563960184,0.01154716,122310.0,122300.0,0.69228793]
[1759563960568,0.01367716,122310.0,122300.0,0.69228793]
[1759563960850,0.01154716,122310.0,122300.0,0.85582022]
[1759563969925,0.01154716,122310.0,122300.0,0.69228793]
[1759563970387,0.01154716,122310.0,122300.0,0.37724793]
[1759563970601,0.01367716,122310.0,122300.0,0.37724793]
[1759563970793,0.01367716,122310.0,122300.0,0.69228793]
[1759563970943,0.01154716,122310.0,122300.0,0.69228793]
[1759563971627,0.01154716,122310.0,122300.0,0.85582022]
[1759563972116,0.01154716,122310.0,122300.0,0.69228793]
[1759563972844,0.01154716,122310.0,122300.0,0.85582022]
[1759563973260,0.01154716,122310.0,122300.0,0.87027533]
[1759563974303,0.01154716,122310.0,122300.0,0.70674304]
[1759563978309,0.01154716,122310.0,122300.0,0.87027533]
[1759563980383,0.01124968,122310.0,122300.0,0.87027533]
[1759563980560,0.01124968,122310.0,122300.0,0.85582022]
[1759563981961,0.01124968,122310.0,122300.0,0.87008428]
[1759563986252,0.01124968,122310.0,122300.0,0.70655199]
[1759563987663,0.01124968,122310.0,122300.0,0.39151199]
[1759563987861,0.01124968,122310.0,122300.0,0.70655199]
[1759563989153,0.01634968,122310.0,122300.0,0.70655199]
[1759563990312,0.01634968,122310.0,122300.0,0.39151199]
[1759563990529,0.01124968,122310.0,122300.0,0.70655199]
[1759563991419,0.01124968,122310.0,122300.0,0.39151199]
[1759563991566,0.01124968,122310.0,122300.0,0.70655199]
[1759563992163,0.01331968,122310.0,122300.0,0.70655199]
[1759563992411,0.01124968,122310.0,122300.0,0.70655199]
[1759563992609,0.01124968,122310.0,122300.0,0.39151199]
[1759563992833,0.01124968,122310.0,122300.0,0.70655199]
[1759563994568,0.01124968,122310.0,122300.0,0.39151199]
[1759563994569,0.01331968,122310.0,122300.0,0.39151199]
[1759563994784,0.01654968,122310.0,122300.0,0.70655199]
[1759564000368,0.01654968,122310.0,122300.0,0.87008428]
[1759564001099,0.09967174,122310.0,122300.0,0.31797223]
[1759564001334,0.09967174,122310.0,122300.0,0.63301223]
[1759564001715,0.09967174,122310.0,122300.0,0.69184327]
[1759564002364,0.27949466,122310.0,122300.0,0.69184327]
[1759564002592,0.26319066,122310.0,122300.0,0.69184327]
[1759564005346,0.26319066,122310.0,122300.0,0.67757921]
[1759564006694,0.26319066,122310.0,122300.0,0.42858814]
[1759564007718,0.26319066,122310.0,122300.0,0.44260929]
[1759564008014,0.26319066,122310.0,122300.0,0.42858814]
[1759564009520,0.26319066,122310.0,122300.0,0.11354814]
[1759564009773,0.26319066,122310.0,122300.0,0.42858814]
[1759564027480,0.32573038,122310.0,122300.0,0.42858814]
[1759564027739,0.35027159,122310.0,122300.0,0.42858814]
[1759564028219,0.35027159,122310.0,122300.0,0.40405245]
[1759564030804,0.35027159,122310.0,122300.0,0.31909245]
[1759564038364,0.35027159,122310.0,122300.0,0.08901245]
[1759564038556,0.35027159,122310.0,122300.0,0.31909245]
[1759564040996,0.35027159,122310.0,122300.0,0.31896367]
[1759564043998,0.35027159,122310.0,122300.0,0.08888367]
[1759564044236,0.35027159,122310.0,122300.0,0.30656367]
[1759564046023,0.35027159,122310.0,122300.0,0.31896367]
[1759564047016,0.35027159,122310.0,122300.0,0.08888367]
[1759564047218,0.35027159,122310.0,122300.0,0.31896367]
[1759564048374,0.16354567,122290.0,122280.0,0.05071923]
[1759564048588,0.25184773,122290.0,122280.0,0.13583984]
[1759564048952,0.25184773,122290.0,122280.0,0.13634113]
[1759564049591,0.24666773,122290.0,122280.0,0.36842113]
[1759564050413,0.25182773,122290.0,122280.0,0.36842113]
[1759564051657,0.24666773,122290.0,122280.0,0.36842113]
[1759564051887,0.24873773,122290.0,122280.0,0.36842113]
[1759564052084,0.25182773,122290.0,122280.0,0.36842113]
[1759564052314,0.24666773,122290.0,122280.0,0.36842113]
[1759564053511,0.25182773,122290.0,122280.0,0.36842113]
[1759564055877,0.24975773,122290.0,122280.0,0.36842113]
[1759564056092,0.24873773,122290.0,122280.0,0.36842113]
[1759564056279,0.25182773,122290.0,122280.0,0.36842113]
[1759564067453,0.24873773,122290.0,122280.0,0.36842113]
[1759564068208,0.25182773,122290.0,122280.0,0.36842113]
[1759564072941,0.25182773,122290.0,122280.0,0.05334113]
[1759564073213,0.25182773,122290.0,122280.0,0.36842113]
[1759564080181,0.25182773,122290.0,122280.0,0.05334113]
[1759564080566,0.25182773,122290.0,122280.0,0.36842113]
[1759564080951,0.25182773,122290.0,122280.0,0.28342113]
[1759564081142,0.25182773,122290.0,122280.0,0.36842113]
[1759564095014,0.25182773,122290.0,122280.0,0.39296288]
[1759564095600,0.25182773,122290.0,122280.0,0.3917952]
[1759564097534,0.25182773,122290.0,122280.0,0.0767152]
[1759564097736,0.25182773,122290.0,122280.0,0.3917952]
[1759564100445,0.25182773,122290.0,122280.0,0.0767152]
[1759564100645,0.25182773,122290.0,122280.0,0.3917952]
[1759564103168,0.25182773,122290.0,122280.0,0.3067952]
[1759564103386,0.25182773,122290.0,122280.0,0.3917952]
[1759564104219,0.25182773,122290.0,122280.0,0.0767152]
[1759564104416,0.25182773,122290.0,122280.0,0.3917952]
[1759564104824,0.27637074,122290.0,122280.0,0.36725345]
[1759564105024,0.27637074,122290.0,122280.0,0.36625345]
[1759564105448,0.27637074,122290.0,122280.0,0.36725345]
[1759564105865,0.27637074,122290.0,122280.0,0.36625345]
[1759564106060,0.27637074,122290.0,122280.0,0.36725345]
[1759564106284,0.28037074,122290.0,122280.0,0.36725345]
[1759564106926,0.28037074,122290.0,122280.0,0.36625345]